bitfinex/quotes_SOLUSD_20241116
["timestamp","ask_amount","ask_price","bid_price","bid_amount"]
[1731766493472,13.84548183,218.06,217.98,13.84548183]
[1731766493870,13.84548183,218.04,217.98,18.43288183]
[1731766494079,13.84548183,218.04,217.97,11.4694]
[1731766495089,13.84548183,218.02,217.95,20.0]
[1731766496895,13.84548183,218.02,217.96,4.5879]
[1731766497400,13.84548183,218.02,217.95,20.0]
[1731766497576,13.84548183,218.02,217.95,24.5881]
[1731766497897,13.84548183,218.02,217.96,13.84548183]
[1731766498500,3.2103,218.05,217.98,13.84548183]
[1731766499370,13.84548183,218.06,217.99,4.5873]
[1731766499571,3.2099,218.07,218.0,13.84548183]
[1731766500293,13.84548183,218.1,218.02,13.84548183]
[1731766500490,3.2094,218.11,218.04,13.84548183]
[1731766500669,13.84548183,218.09,217.99,16.0557]
[1731766500870,13.84548183,218.1,218.02,13.84548183]
[1731766501985,17.05508183,218.1,218.02,18.43198183]
[1731766503072,17.05508183,218.1,218.01,13.84548183]
[1731766503073,13.84548183,218.08,218.01,13.84548183]
[1731766503400,13.84548183,218.08,218.0,4.587]
[1731766504881,17.05538183,218.08,218.0,4.587]
[1731766505086,17.05538183,218.08,218.01,13.84548183]
[1731766505394,13.84548183,218.05,217.97,13.84548183]
[1731766505604,13.84548183,218.01,217.92,13.84548183]
[1731766505808,13.84548183,217.99,217.92,13.84548183]
[1731766506708,3.2113,217.98,217.92,13.84548183]
[1731766509118,13.84548183,217.97,217.88,29.90868183]
[1731766510191,3.2115,217.96,217.88,29.90868183]
[1731766510391,13.84548183,217.93,217.86,0.5179435]
[1731766510606,13.84548183,217.95,217.87,13.84548183]
[1731766510808,3.2115,217.96,217.89,13.84548183]
[1731766511497,13.84548183,217.95,217.86,30.42852533]
[1731766511705,13.84548183,217.95,217.88,13.84548183]
[1731766512599,17.05728183,217.95,217.88,13.84548183]
[1731766513007,17.05728183,217.95,217.87,0.12549]
[1731766513704,13.84548183,217.91,217.86,0.5179435]
[1731766513897,13.84548183,217.93,217.86,0.5179435]
[1731766514584,13.84548183,217.95,217.87,13.84548183]
[1731766514902,13.84548183,217.97,217.89,13.84548183]
[1731766515687,13.84548183,217.97,217.87,0.25098]
[1731766515688,13.84548183,217.96,217.88,13.84548183]
[1731766516011,17.05718183,217.95,217.87,14.09646183]
[1731766517908,17.05718183,217.95,217.87,13.84548183]
[1731766519388,3.2114,217.97,217.9,13.84548183]
[1731766519902,17.05688183,217.97,217.9,13.84548183]
[1731766520405,13.84548183,217.96,217.89,13.84548183]
[1731766520998,13.84548183,217.97,217.89,13.84548183]
[1731766521816,17.05698183,217.97,217.89,13.84548183]
[1731766522013,17.05698183,217.97,217.89,18.43488183]
[1731766522307,13.84548183,217.98,217.9,13.84548183]
[1731766522488,3.2112,217.99,217.93,13.84548183]
[1731766522690,17.05618183,218.02,217.94,13.84548183]
[1731766522893,0.1,218.08,217.95,13.84548183]
[1731766522894,13.84548183,218.03,217.95,13.84548183]
[1731766523196,0.2,218.08,218.0,13.84548183]
[1731766523197,17.05538183,218.07,218.0,13.84548183]
[1731766523596,13.84548183,218.03,217.95,13.84548183]
[1731766523986,13.84548183,218.05,217.97,13.97097183]
[1731766524199,17.05538183,218.07,218.0,13.84548183]
[1731766524434,17.05538183,218.07,217.97,0.12549]
[1731766524435,33.84548183,218.06,217.99,13.84548183]
[1731766524693,17.05578183,218.05,217.98,13.84548183]
[1731766524888,13.84548183,218.04,217.97,0.25098]
[1731766525213,13.84548183,218.01,217.93,11.4715]
[1731766525404,3.2103,218.05,217.94,0.34465462]
[1731766525610,3.21,218.07,218.01,13.84548183]
[1731766526122,17.05518183,218.09,218.01,13.84548183]
[1731766526494,13.84548183,218.09,218.02,13.84548183]
[1731766526715,13.84548183,218.1,218.03,13.84548183]
[1731766526920,3.2094,218.11,218.05,13.84548183]
[1731766527123,3.2094,218.11,218.06,13.84548183]
[1731766527503,17.05488183,218.11,218.04,13.84548183]
[1731766527807,13.84548183,218.1,218.03,0.12549]
[1731766527995,13.84548183,218.08,218.02,11.4668]
[1731766528317,3.2094,218.11,218.02,11.4668]
[1731766528516,13.84548183,218.1,218.03,13.84548183]
[1731766529120,13.84548183,218.1,218.03,0.25098]
[1731766529416,13.84548183,218.08,218.02,11.4668]
[1731766530814,17.05518183,218.09,218.01,13.84548183]
[1731766531119,13.84548183,218.08,218.01,0.25098]
[1731766531306,3.2097,218.09,218.01,14.09646183]
[1731766531509,17.05518183,218.09,218.01,14.09646183]
[1731766531823,3.2097,218.09,218.05,13.84548183]
[1731766532023,20.0,218.15,218.06,13.84548183]
[1731766532024,13.84548183,218.13,218.06,13.84548183]
[1731766532191,17.05438183,218.14,218.06,13.84548183]
[1731766532815,13.84548183,218.11,218.04,0.25098]
[1731766533020,3.2089,218.14,218.07,13.84548183]
[1731766533402,3.2089,218.14,218.08,13.84548183]
[1731766533598,3.2089,218.14,218.06,4.5857]
[1731766533599,3.2089,218.14,218.07,13.84548183]
[1731766533819,17.05438183,218.14,218.07,13.84548183]
[1731766534509,13.84548183,218.17,218.09,13.97097183]
[1731766534931,13.84548183,218.16,218.09,13.97097183]
[1731766535216,13.84548183,218.17,218.09,13.97097183]
[1731766535514,13.84548183,218.17,218.1,13.84548183]
[1731766535903,17.05348183,218.2,218.12,13.84548183]
[1731766536116,3.208,218.2,218.14,13.84548183]
[1731766536317,13.84548183,218.21,218.14,13.84548183]
[1731766536513,0.2,218.28,218.17,13.84548183]
[1731766536514,13.84548183,218.25,218.17,13.84548183]
[1731766536815,13.84548183,218.24,218.17,13.84548183]
[1731766537219,13.84548183,218.23,218.16,13.84548183]
[1731766537797,17.05308183,218.23,218.16,13.84548183]
[1731766538098,17.05308183,218.23,218.15,18.68036183]
[1731766538919,13.84548183,218.19,218.08,11.4635]
[1731766539123,13.84548183,218.14,218.06,13.84548183]
[1731766539443,13.84548183,218.13,218.05,13.84548183]
[1731766540005,13.84548183,218.12,218.05,13.84548183]
[1731766540222,3.2091,218.13,218.06,0.09367462]
[1731766540422,13.84548183,218.14,218.08,0.12549]
[1731766540600,13.84548183,218.16,218.08,0.25098]
[1731766540797,13.84548183,218.14,218.05,16.0512]
[1731766540996,13.84548183,218.14,218.06,14.09646183]
[1731766541305,17.05448183,218.14,218.06,14.09646183]
[1731766542219,13.84548183,218.12,218.06,0.25098]
[1731766542825,3.209,218.14,218.07,13.84548183]
[1731766543007,13.84548183,218.15,218.08,13.84548183]
[1731766543211,13.84548183,218.2,218.12,13.84548183]
[1731766543531,3.2082,218.19,218.12,13.84548183]
[1731766543825,3.2082,218.19,218.13,13.84548183]
[1731766544326,17.05368183,218.19,218.11,13.84548183]
[1731766544523,17.05368183,218.19,218.12,13.84548183]
[1731766544829,3.2079,218.21,218.15,13.84548183]
[1731766545515,13.84548183,218.23,218.16,13.84548183]
[1731766545704,13.84548183,218.24,218.16,13.84548183]
[1731766546825,3.2076,218.23,218.16,13.84548183]
[1731766547021,17.05308183,218.23,218.16,13.84548183]
[1731766547225,17.05308183,218.23,218.15,13.84548183]
[1731766547920,13.84548183,218.21,218.13,13.84548183]
[1731766548333,13.84548183,218.22,218.14,13.84548183]
[1731766549034,13.84548183,218.21,218.13,13.84548183]
[1731766549406,3.208,218.2,218.13,13.84548183]
[1731766549740,13.84548183,218.19,218.12,11.4615]
[1731766549906,3.208,218.2,218.12,11.4615]
[1731766549907,13.84548183,218.17,218.12,11.4615]
[1731766551231,13.84548183,218.15,218.07,13.84548183]
[1731766551525,13.84548183,218.15,218.08,13.84548183]
[1731766551834,3.2079,218.21,218.07,0.09367462]
[1731766552204,13.84548183,218.18,218.13,0.25098]
[1731766552402,13.84548183,218.18,218.13,0.12549]
[1731766552633,13.84548183,218.18,218.12,0.09367462]
[1731766552808,13.84548183,218.19,218.13,0.12549]
[1731766553018,13.84548183,218.18,218.12,0.12549]
[1731766553227,13.84548183,218.19,218.12,13.97097183]
[1731766554033,17.05368183,218.19,218.12,13.97097183]
[1731766554737,13.84548183,218.22,218.14,13.97097183]
[1731766555509,13.84548183,218.21,218.15,0.12549]
[1731766555923,17.05348183,218.21,218.15,0.12549]
[1731766556113,17.05318183,218.23,218.16,13.97097183]
[1731766556328,3.2077,218.23,218.18,0.12549]
[1731766556514,3.2074,218.25,218.18,14.09646183]
[1731766556718,3.2074,218.25,218.18,13.97097183]
[1731766557327,3.2074,218.25,218.2,0.12549]
[1731766557836,3.2074,218.25,218.19,0.12549]
[1731766558423,13.84548183,218.24,218.18,0.12549]
[1731766558734,13.84548183,218.24,218.18,0.25098]
[1731766558921,13.84548183,218.23,218.18,0.25098]
[1731766559236,13.84548183,218.19,218.14,0.25098]
[1731766560007,13.84548183,218.21,218.14,0.25098]
[1731766560220,13.84548183,218.23,218.16,0.12549]
[1731766560423,13.84548183,218.23,218.16,0.25098]
[1731766560832,13.84548183,218.21,218.16,0.12549]
[1731766561035,13.84548183,218.21,218.15,0.12549]
[1731766561838,13.84548183,218.25,218.19,0.12549]
[1731766562936,3.2074,218.24,218.19,0.12549]
[1731766564529,3.2074,218.24,218.22,0.0751439]
[1731766564744,13.84548183,218.26,218.22,0.0751439]
[1731766566141,17.05278183,218.26,218.22,0.0751439]
[1731766569028,17.05238183,218.28,218.22,0.0751439]
[1731766570140,13.84548183,218.26,218.22,0.0751439]
[1731766571134,13.84548183,218.24,218.22,0.0751439]
[1731766571348,23.776884,218.23,218.22,0.0751439]
[1731766571723,43.776884,218.23,218.22,0.0751439]
[1731766572329,46.984484,218.23,218.22,0.0751439]
[1731766573742,26.984484,218.23,218.22,0.0751439]
[1731766574455,47.17815862,218.23,218.22,0.0751439]
[1731766575044,20.0,218.2,218.05,13.84548183]
[1731766575358,13.84548183,218.12,218.06,0.09367462]
[1731766575534,13.84548183,218.12,218.05,18.43138183]
[1731766575728,13.84548183,218.12,218.05,29.89658183]
[1731766575929,13.84548183,218.12,218.06,0.09367462]
[1731766576132,13.84548183,218.12,218.05,29.89658183]
[1731766576751,13.84548183,218.08,218.0,11.4677]
[1731766576989,13.84548183,218.06,217.98,13.84548183]
[1731766577167,13.84548183,218.04,217.97,4.5876]
[1731766577335,13.84548183,218.02,217.97,4.5876]
[1731766577849,13.84548183,218.02,217.98,0.09367462]
[1731766578234,13.84548183,218.02,217.97,4.5876]
[1731766578453,13.84548183,218.02,217.98,0.25098]
[1731766578633,13.84548183,218.07,217.99,13.84548183]
[1731766578831,13.84548183,218.07,218.0,0.12549]
[1731766579251,13.84548183,218.05,218.0,0.12549]
[1731766579445,13.84548183,218.05,217.99,0.21916462]
[1731766579657,13.84548183,218.05,217.99,0.09367462]
[1731766580345,13.84548183,218.05,217.99,0.21916462]
[1731766580553,13.84548183,218.05,218.0,0.12549]
[1731766581641,13.38722869,218.05,218.0,0.12549]
[1731766581843,0.1,218.12,218.0,0.12549]
[1731766581844,13.84548183,218.04,218.0,0.12549]
[1731766582163,13.84548183,218.06,218.0,0.12549]
[1731766582346,13.84548183,218.05,217.98,0.25098]
[1731766582557,13.84548183,218.04,217.98,0.25098]
[1731766583269,13.84548183,218.07,218.0,0.12549]
[1731766583452,13.84548183,218.08,218.02,0.12549]
[1731766583635,13.84548183,218.07,218.01,0.12549]
[1731766583840,13.84548183,218.07,218.01,0.25098]
[1731766584347,13.84548183,218.05,217.99,0.25098]
[1731766584544,13.84548183,218.03,217.99,0.25098]
[1731766584949,13.84548183,218.02,217.95,13.84548183]
[1731766585146,13.84548183,218.03,217.96,13.84548183]
[1731766585445,13.84548183,218.03,217.97,13.93915645]
[1731766585754,13.84548183,218.03,217.97,0.09367462]
[1731766586365,13.84548183,218.03,217.98,0.12549]
[1731766587063,13.84548183,218.04,217.98,0.12549]
[1731766587452,13.84548183,218.04,217.99,0.09367462]
[1731766587661,13.84548183,218.05,218.0,0.12549]
[1731766588577,13.84548183,218.04,218.0,0.12549]
[1731766588860,13.84548183,218.05,218.0,0.12549]
[1731766589258,13.84548183,218.02,217.96,0.25098]
[1731766589552,13.84548183,218.04,217.99,0.09367462]
[1731766589855,13.84548183,218.06,217.99,13.93915645]
[1731766590168,13.84548183,218.06,218.0,0.25098]
[1731766590764,17.05528183,218.08,218.02,0.12549]
[1731766591066,17.05528183,218.08,218.02,0.25098]
[1731766591243,17.05528183,218.08,218.02,0.12549]
[1731766591244,13.84548183,218.07,218.02,0.12549]
[1731766591443,13.84548183,218.06,218.01,0.09367462]
[1731766591644,17.05528183,218.08,218.01,0.21916462]
[1731766591858,17.05528183,218.08,218.02,0.12549]
[1731766592372,13.84548183,218.1,218.03,13.93915645]
[1731766592574,13.84548183,218.12,218.05,0.09367462]
[1731766592865,13.84548183,218.07,218.04,0.12549]
[1731766593058,13.84548183,218.06,218.01,0.25098]
[1731766593366,13.84548183,218.04,217.98,0.12549]
[1731766593570,11.2324,218.12,217.97,0.12549]
[1731766593571,13.84548183,218.03,217.97,0.12549]
[1731766593867,11.2324,218.12,217.96,4.5878]
[1731766593868,13.84548183,218.02,217.96,4.5878]
[1731766594369,13.84548183,218.04,217.99,0.09367462]
[1731766595471,13.84548183,218.04,218.0,0.12549]
[1731766595644,13.84548183,218.06,218.0,0.12549]
[1731766596165,13.84548183,218.06,218.0,13.97097183]
[1731766596550,13.84548183,218.11,218.03,13.93915645]
[1731766596862,13.84548183,218.11,218.05,13.93915645]
[1731766597068,13.84548183,218.11,218.06,0.12549]
[1731766597565,13.84548183,218.11,218.05,0.21916462]
[1731766598547,17.05488183,218.11,218.05,0.12549]
[1731766598752,13.84548183,218.11,218.06,0.12549]
[1731766598960,13.84548183,218.12,218.06,0.12549]
[1731766599769,17.05468183,218.12,218.06,0.12549]
[1731766600463,13.84548183,218.11,218.05,0.12549]
[1731766600646,13.84548183,218.09,218.05,0.12549]
[1731766600846,13.84548183,218.07,218.0,11.4678]
[1731766601545,13.84548183,218.05,218.0,11.4678]
[1731766602145,13.84548183,218.05,218.01,0.12549]
[1731766602359,17.05578183,218.05,217.98,0.25098]
[1731766603761,13.84548183,218.08,218.0,18.68356183]
[1731766604070,13.84548183,218.08,218.0,30.15136183]
[1731766604578,3.2092,218.12,218.05,13.84548183]
[1731766604866,13.84548183,218.14,218.07,0.12549]
[1731766605477,13.84548183,218.09,218.03,0.12549]
[1731766605660,13.84548183,218.08,218.03,0.12549]
[1731766605860,17.05528183,218.08,218.03,0.12549]
[1731766606263,17.05528183,218.08,218.02,0.12549]
[1731766606653,13.84548183,218.12,218.06,0.12549]
[1731766606999,13.84548183,218.14,218.06,13.97097183]
[1731766607164,13.84548183,218.16,218.08,13.84548183]
[1731766607359,13.84548183,218.16,218.09,0.12549]
[1731766607964,13.84548183,218.14,218.07,0.34465462]
[1731766608172,13.84548183,218.14,218.07,18.77563645]
[1731766608679,17.05418183,218.16,218.09,0.12549]
[1731766608852,13.84548183,218.15,218.09,0.12549]
[1731766609185,13.84548183,218.15,218.08,13.84548183]
[1731766610375,17.05428183,218.15,218.08,13.84548183]
[1731766610547,13.84548183,218.13,218.06,25.30978183]
[1731766610870,13.84548183,218.13,218.06,13.84548183]
[1731766612070,13.84548183,218.13,218.06,18.43128183]
[1731766612470,3.2092,218.12,218.06,0.12549]
[1731766613366,17.05458183,218.13,218.06,0.12549]
[1731766614363,17.05458183,218.13,218.05,13.84548183]
[1731766615050,17.05458183,218.13,218.05,18.43148183]
[1731766615251,23.776884,218.12,218.05,13.84548183]
[1731766615466,13.84548183,218.11,218.03,25.31178183]
[1731766616882,3.2095,218.1,218.03,25.31178183]
[1731766617059,3.2095,218.1,218.03,13.84548183]
[1731766617961,13.84548183,218.09,218.01,13.84548183]
[1731766618775,3.2095,218.1,218.03,13.84548183]
[1731766620967,13.84548183,218.09,218.01,13.84548183]
[1731766621162,13.84548183,218.07,217.99,25.31388183]
[1731766622291,13.84548183,218.07,217.99,29.90118183]
[1731766622470,13.84548183,218.09,218.01,13.84548183]
[1731766622670,23.776884,218.08,218.01,13.84548183]
[1731766622889,23.776884,218.08,217.94,11.4706]
[1731766622890,37.62236583,218.03,217.94,11.4706]
[1731766623065,13.84548183,218.0,217.93,13.84548183]
[1731766623992,23.776884,217.99,217.91,13.84548183]
[1731766624168,13.84548183,218.0,217.92,13.84548183]
[1731766624369,3.2104,218.04,217.95,0.09367462]
[1731766624370,13.84548183,218.02,217.95,0.09367462]
[1731766624567,17.05588183,218.04,217.96,13.84548183]
[1731766625072,17.05588183,218.04,217.86,0.5179435]
[1731766625073,13.84548183,218.0,217.93,25.31678183]
[1731766625706,23.776884,218.03,217.91,14.06464645]
[1731766625707,13.84548183,217.98,217.91,14.06464645]
[1731766625902,13.84548183,217.98,217.91,13.97097183]
[1731766626120,13.84548183,217.96,217.88,11.4738]
[1731766626308,13.84548183,218.02,217.88,11.4738]
[1731766626309,13.84548183,217.94,217.88,11.4738]
[1731766626482,13.84548183,217.94,217.86,18.95332533]
[1731766626813,13.84548183,217.92,217.86,0.5179435]
[1731766626997,13.84548183,217.94,217.86,14.36342533]
[1731766628517,23.776884,217.97,217.9,13.84548183]
[1731766628722,3.211,218.0,217.87,0.34465462]
[1731766628723,23.776884,217.99,217.93,13.84548183]
[1731766629907,17.05648183,218.0,217.93,13.84548183]
[1731766630105,3.211,218.0,217.93,13.84548183]
[1731766630307,17.05648183,218.0,217.93,13.84548183]
[1731766631808,13.84548183,217.99,217.91,13.84548183]
[1731766632004,13.84548183,217.96,217.88,4.5896]
[1731766632209,13.84548183,217.94,217.86,0.5179435]
[1731766632421,13.84548183,217.94,217.86,14.36342533]
[1731766632641,13.84548183,217.93,217.86,14.36342533]
[1731766633476,17.05748183,217.93,217.86,14.36342533]
[1731766636331,13.84548183,217.91,217.86,0.5179435]
[1731766636913,3.212,217.93,217.82,12.86342533]
[1731766637163,13.84548183,217.88,217.81,4.591]
[1731766637309,13.84548183,217.86,217.8,11.4781]
[1731766637513,13.84548183,217.88,217.8,25.32358183]
[1731766637840,13.84548183,217.88,217.8,29.91488183]
[1731766638138,13.84548183,217.9,217.82,13.84548183]
[1731766638419,13.84548183,217.9,217.83,4.5907]
[1731766638838,13.84548183,217.88,217.81,4.591]
[1731766639328,13.84548183,217.88,217.8,25.32358183]
[1731766640405,17.05828183,217.88,217.8,25.32358183]
[1731766640608,13.84548183,217.86,217.8,25.32358183]
[1731766642596,13.84548183,217.86,217.8,13.84548183]
[1731766642815,13.84548183,217.84,217.77,13.84548183]
[1731766643017,13.84548183,217.84,217.76,0.12549]
[1731766643226,13.84548183,217.84,217.58,42.55886889]
[1731766643227,13.84548183,217.77,217.68,13.84548183]
[1731766643524,13.84548183,217.76,217.68,13.84548183]
[1731766643809,13.84548183,217.76,217.69,0.09367462]
[1731766644007,23.776884,217.85,217.71,0.09367462]
[1731766644197,3.2142,217.78,217.7,13.84548183]
[1731766644389,13.84548183,217.75,217.67,13.84548183]
[1731766644581,13.84548183,217.74,217.66,29.92538183]
[1731766644800,13.84548183,217.74,217.67,0.09367462]
[1731766644999,13.84548183,217.74,217.66,29.92538183]
[1731766645212,3.2142,217.78,217.66,25.33128183]
[1731766645376,13.84548183,217.73,217.66,25.33128183]
[1731766645578,10.32534917,217.84,217.72,13.84548183]
[1731766645780,13.84548183,217.8,217.73,13.84548183]
[1731766646008,13.84548183,217.79,217.72,13.84548183]
[1731766646206,13.84548183,217.78,217.71,13.84548183]
[1731766646500,3.2142,217.78,217.72,13.84548183]
[1731766647199,13.84548183,217.81,217.74,13.84548183]
[1731766647400,13.84548183,217.81,217.73,14.06464645]
[1731766647716,13.84548183,217.79,217.72,14.06464645]
[1731766648005,13.84548183,217.79,217.73,0.12549]
[1731766648304,17.05958183,217.79,217.71,13.84548183]
[1731766648600,13.84548183,217.78,217.7,13.84548183]
[1731766648808,13.84548183,217.78,217.71,0.12549]
[1731766649390,13.84548183,217.78,217.71,13.97097183]
[1731766650108,13.84548183,217.79,217.72,13.84548183]
[1731766650308,13.84548183,217.8,217.72,13.84548183]
[1731766650477,13.84548183,217.79,217.72,13.84548183]
[1731766651309,17.05958183,217.79,217.72,13.84548183]
[1731766651880,3.2139,217.81,217.75,13.84548183]
[1731766652083,3.2139,217.81,217.76,13.84548183]
[1731766652310,17.05898183,217.83,217.76,13.84548183]
[1731766652608,13.84548183,217.86,217.79,13.84548183]
[1731766652809,13.84548183,217.87,217.79,13.84548183]
[1731766653108,13.84548183,217.86,217.79,13.84548183]
[1731766653288,17.05858183,217.86,217.79,13.84548183]
[1731766653484,13.84548183,217.85,217.78,13.97097183]
[1731766653686,13.84548183,217.85,217.79,0.09367462]
[1731766653901,13.84548183,217.85,217.78,13.97097183]
[1731766654102,17.05858183,217.86,217.79,13.84548183]
[1731766654481,13.84548183,217.87,217.8,14.06464645]
[1731766654684,13.84548183,217.9,217.82,14.06464645]
[1731766654903,13.84548183,217.9,217.83,13.97097183]
[1731766655407,13.84548183,217.9,217.83,0.12549]
[1731766656215,17.05798183,217.9,217.83,13.97097183]
[1731766657100,13.84548183,217.89,217.83,0.12549]
[1731766657304,13.84548183,217.87,217.81,0.12549]
[1731766658897,13.84548183,217.88,217.81,13.84548183]
[1731766659121,13.84548183,217.89,217.81,13.84548183]
[1731766660296,13.84548183,217.88,217.81,13.84548183]
[1731766660700,13.84548183,217.88,217.82,0.12549]
[1731766660921,13.84548183,217.87,217.81,0.09367462]
[1731766661627,13.84548183,217.88,217.81,13.93915645]
[1731766661820,13.84548183,217.88,217.82,0.12549]
[1731766662197,13.84548183,217.89,217.83,0.09367462]
[1731766662397,13.84548183,217.89,217.84,0.12549]
[1731766664113,13.84548183,217.9,217.84,0.12549]
[1731766664519,13.84548183,217.9,217.84,0.25098]
[1731766665124,13.84548183,217.89,217.84,0.25098]
[1731766666103,13.84548183,217.94,217.87,13.84548183]
[1731766666317,13.84548183,217.97,217.9,0.12549]
[1731766666609,13.84548183,217.96,217.92,0.12549]
[1731766667298,13.84548183,217.97,217.92,0.12549]
[1731766667926,13.84548183,217.98,217.92,0.12549]
[1731766668122,17.05648183,218.0,217.92,13.97097183]
[1731766668324,17.05648183,218.0,217.93,0.12549]
[1731766668836,13.84548183,217.99,217.93,0.12549]
[1731766669328,13.84548183,218.02,217.96,0.12549]
[1731766669505,13.84548183,218.03,217.96,0.25098]
[1731766670201,13.84548183,217.97,217.89,0.12549]
[1731766670517,13.84548183,217.99,217.92,0.25098]
[1731766670827,13.84548183,217.98,217.92,0.25098]
[1731766671007,13.84548183,217.99,217.92,0.25098]
[1731766671330,13.84548183,218.02,217.96,0.25098]
[1731766671509,13.84548183,218.01,217.96,0.25098]
[1731766671924,13.84548183,218.01,217.96,0.12549]
[1731766672108,13.84548183,218.01,217.95,0.09367462]
[1731766672309,13.84548183,218.02,217.95,0.09367462]
[1731766672505,3.2108,218.01,217.95,0.09367462]
[1731766672812,13.84548183,217.98,217.93,0.25098]
[1731766674436,13.84548183,217.98,217.91,0.25098]
[1731766674924,13.84548183,217.96,217.91,0.09367462]
[1731766675235,13.84548183,217.96,217.89,13.84548183]
[1731766675236,13.84548183,217.93,217.86,13.84548183]
[1731766675533,13.84548183,217.93,217.78,23.0588]
[1731766675534,13.84548183,217.9,217.84,4.5904]
[1731766675911,13.84548183,217.87,217.8,13.84548183]
[1731766676426,13.84548183,217.86,217.79,13.84548183]
[1731766676633,13.84548183,217.86,217.8,0.09367462]
[1731766676933,13.84548183,217.82,217.72,4.593]
[1731766677110,13.84548183,217.82,217.74,13.84548183]
[1731766677507,13.84548183,217.82,217.73,0.09367462]
[1731766677711,13.84548183,217.81,217.74,13.84548183]
[1731766677916,13.84548183,217.82,217.75,13.84548183]
[1731766678210,13.84548183,217.82,217.76,0.34465462]
[1731766678641,13.84548183,217.81,217.76,0.25098]
[1731766678810,13.84548183,217.78,217.73,11.482]
[1731766680129,13.84548183,217.78,217.74,0.25098]
[1731766680633,7.09486996,217.86,217.75,0.09367462]
[1731766680934,17.05888183,217.84,217.77,14.09646183]
[1731766681120,13.84548183,217.84,217.77,0.25098]
[1731766681325,13.84548183,217.82,217.77,0.25098]
[1731766681526,13.84548183,217.81,217.75,0.34465462]
[1731766681830,3.2127,217.88,217.8,18.53045645]
[1731766682062,13.84548183,217.92,217.86,0.09367462]
[1731766682211,13.84548183,217.92,217.86,0.21916462]
[1731766682405,13.84548183,217.93,217.87,0.25098]
[1731766682610,13.84548183,217.92,217.85,13.84548183]
[1731766682810,13.84548183,217.92,217.86,0.25098]
[1731766683028,17.05768183,217.92,217.86,0.25098]
[1731766683312,13.84548183,217.88,217.8,11.4784]
[1731766683512,13.84548183,217.88,217.81,14.09646183]
[1731766683730,13.84548183,217.88,217.82,0.09367462]
[1731766684534,13.84548183,217.88,217.73,0.1]
[1731766684535,13.84548183,217.84,217.77,13.84548183]
[1731766684836,13.84548183,217.84,217.75,11.4809]
[1731766684837,13.84548183,217.8,217.72,18.43848183]
[1731766685038,13.84548183,217.79,217.72,4.593]
[1731766685333,13.84548183,217.78,217.72,4.593]
[1731766685519,13.84548183,217.8,217.73,0.09367462]
[1731766685720,13.84548183,217.79,217.73,0.09367462]
[1731766685920,23.776884,217.87,217.72,18.43848183]
[1731766685921,13.84548183,217.8,217.72,18.43848183]
[1731766686122,13.84548183,217.8,217.73,13.84548183]
[1731766686336,13.84548183,217.8,217.74,0.25098]
[1731766686530,3.2132,217.85,217.76,13.97097183]
[1731766686712,13.84548183,217.84,217.77,0.25098]
[1731766687049,22.25410467,217.82,217.77,0.25098]
[1731766687340,22.25410467,217.82,217.76,0.25098]
[1731766687631,22.25410467,217.91,217.78,22.50508467]
[1731766687632,25.46720467,217.86,217.78,22.50508467]
[1731766687809,22.25410467,217.84,217.79,0.21916462]
[1731766688014,25.46750467,217.84,217.8,0.25098]
[1731766688229,22.25410467,217.83,217.75,26.84640467]
[1731766688425,22.25410467,217.82,217.76,0.25098]
[1731766688764,22.25410467,217.81,217.73,22.25410467]
[1731766689070,22.25410467,217.79,217.72,33.73670467]
[1731766689373,22.25410467,217.79,217.73,0.09367462]
[1731766690151,22.25410467,217.79,217.73,0.34465462]
[1731766690348,22.25410467,217.77,217.72,11.4826]
[1731766690659,22.25410467,217.75,217.68,22.25410467]
[1731766691456,22.25410467,217.73,217.66,11.4853]
[1731766691770,22.25410467,217.71,217.66,11.4853]
[1731766691979,22.25410467,217.67,217.64,0.5179435]
[1731766692274,22.25410467,217.65,217.64,0.5179435]
[1731766694376,25.47020467,217.65,217.64,0.5179435]
[1731766696274,49.24708867,217.65,217.64,0.5179435]
[1731766698570,49.44076329,217.65,217.64,0.5179435]
[1731766699267,49.44076329,217.65,217.49,16.092]
[1731766699268,0.1,217.62,217.49,11.4942]
[1731766699470,0.1,217.62,217.47,4.5983]
[1731766699471,22.25410467,217.54,217.47,4.5983]
[1731766699774,23.776884,217.64,217.48,22.25410467]
[1731766699775,22.25410467,217.55,217.48,22.25410467]
[1731766699975,22.25410467,217.54,217.47,22.25410467]
[1731766700169,22.25410467,217.54,217.46,22.25410467]
[1731766700570,22.25410467,217.55,217.47,22.25410467]
[1731766700901,22.25410467,217.58,217.5,22.25410467]
[1731766701189,22.25410467,217.58,217.47,16.0941]
[1731766701190,22.25410467,217.56,217.49,0.25098]
[1731766701369,22.25410467,217.55,217.48,0.25098]
[1731766701884,22.25410467,217.56,217.49,22.25410467]